[Event "Junior-SM 2025"]
[Site "Uppsala, Sweden"]
[Date "2025.07.05"]
[Round "8.4"]
[White "Frank, Anton"]
[Black "Sandberg, Lucas"]
[Result "0-1"]
[TimeControl "90 min for 40 move + 30 min with an increment of 30 sec starting move 1"]
[WhiteTitle "CM"]
[WhiteFideId "1752383"]
[BlackFideId "1773712"]
[WhiteElo "2183"]
[BlackElo "2243"]

1. e4 {[%clk 01:30:58]} {[%emt 00:00:01]} e6 {[%clk 01:30:48]} {[%emt
00:00:13]} 2. d4 {[%clk 01:31:23]} {[%emt 00:00:05]} d5 {[%clk 01:31:16]}
{[%emt 00:00:02]} 3. Nd2 {[%clk 01:31:45]} {[%emt 00:00:07]} dxe4 {[%clk
01:29:57]} {[%emt 00:01:49]} 4. Nxe4 {[%clk 01:32:07]} {[%emt 00:00:08]} Nf6
{[%clk 01:30:23]} {[%emt 00:00:03]} 5. Nxf6+ {[%clk 01:32:26]} {[%emt
00:00:12]} gxf6 {[%clk 01:30:49]} {[%emt 00:00:03]} 6. Nf3 {[%clk 01:32:38]}
{[%emt 00:00:18]} Nc6 {[%clk 01:30:31]} {[%emt 00:00:49]} 7. Bc4 {[%clk
01:32:59]} {[%emt 00:00:08]} Qd6 {[%clk 01:27:18]} {[%emt 00:03:42]} 8. O-O
{[%clk 01:26:09]} {[%emt 00:07:21]} Bd7 {[%clk 01:23:52]} {[%emt 00:03:56]} 9.
c3 {[%clk 01:12:20]} {[%emt 00:14:19]} O-O-O {[%clk 01:15:42]} {[%emt
00:08:40]} 10. Qe2 {[%clk 01:11:14]} {[%emt 00:01:36]} Ne7 {[%clk 01:11:24]}
{[%emt 00:04:48]} 11. Nd2 {[%clk 01:00:39]} {[%emt 00:11:05]} f5 {[%clk
01:06:02]} {[%emt 00:05:53]} 12. Bd3 {[%clk 00:52:38]} {[%emt 00:08:30]} Rg8
{[%clk 00:55:48]} {[%emt 00:10:44]} 13. Nc4 {[%clk 00:49:41]} {[%emt 00:03:27]}
Qd5 {[%clk 00:55:31]} {[%emt 00:00:47]} 14. f3 {[%clk 00:49:43]} {[%emt
00:00:28]} Ng6 {[%clk 00:52:00]} {[%emt 00:04:00]} 15. Kh1 {[%clk 00:48:08]}
{[%emt 00:02:06]} Bc6 {[%clk 00:48:34]} {[%emt 00:03:56]} 16. Rg1 {[%clk
00:44:35]} {[%emt 00:04:04]} Be7 {[%clk 00:42:01]} {[%emt 00:07:01]} 17. b4
{[%clk 00:43:18]} {[%emt 00:01:48]} b6 {[%clk 00:39:53]} {[%emt 00:02:39]} 18.
a4 {[%clk 00:41:26]} {[%emt 00:02:22]} Bf6 {[%clk 00:36:32]} {[%emt 00:03:50]}
19. b5 {[%clk 00:37:00]} {[%emt 00:04:57]} Bb7 {[%clk 00:36:30]} {[%emt
00:00:32]} 20. a5 {[%clk 00:36:04]} {[%emt 00:01:25]} Nh4 {[%clk 00:32:19]}
{[%emt 00:04:41]} 21. Ne3 {[%clk 00:32:44]} {[%emt 00:03:50]} Qd7 {[%clk
00:30:23]} {[%emt 00:02:25]} 22. axb6 {[%clk 00:28:43]} {[%emt 00:04:32]} axb6
{[%clk 00:30:42]} {[%emt 00:00:12]} 23. Ra4 {[%clk 00:25:21]} {[%emt 00:03:52]}
f4 {[%clk 00:28:08]} {[%emt 00:03:04]} 24. Ng4 {[%clk 00:20:15]} {[%emt
00:05:35]} Rxg4 {[%clk 00:25:29]} {[%emt 00:03:10]} 25. fxg4 {[%clk 00:17:04]}
{[%emt 00:03:41]} f3 {[%clk 00:18:38]} {[%emt 00:07:21]} 26. gxf3 {[%clk
00:16:13]} {[%emt 00:01:21]} Nxf3 {[%clk 00:17:41]} {[%emt 00:01:26]} 27. Rg2
{[%clk 00:03:18]} {[%emt 00:13:26]} Nh4 {[%clk 00:13:17]} {[%emt 00:04:54]} 28.
Be4 {[%clk 00:03:41]} {[%emt 00:00:06]} Nxg2 {[%clk 00:13:35]} {[%emt
00:00:13]} 29. Bxg2 {[%clk 00:03:52]} {[%emt 00:00:19]} Bxg2+ {[%clk 00:11:24]}
{[%emt 00:02:40]} 30. Kxg2 {[%clk 00:03:44]} {[%emt 00:00:39]} Qd5+ {[%clk
00:11:47]} {[%emt 00:00:06]} 31. Kg1 {[%clk 00:01:28]} {[%emt 00:02:46]} h5
{[%clk 00:11:04]} {[%emt 00:01:13]} 32. Bf4 {[%clk 00:01:03]} {[%emt 00:00:55]}
Rg8 {[%clk 00:09:11]} {[%emt 00:02:23]} 33. Bg3 {[%clk 00:01:03]} {[%emt
00:00:30]} Rxg4 {[%clk 00:09:15]} {[%emt 00:00:26]} 34. Qf1 {[%clk 00:00:37]}
{[%emt 00:00:56]} Bd8 {[%clk 00:05:12]} {[%emt 00:04:33]} 35. Qxf7 {[%clk
00:00:40]} {[%emt 00:00:27]} h4 {[%clk 00:04:53]} {[%emt 00:00:49]} 36. Ra8+
{[%clk 00:00:52]} {[%emt 00:00:18]} Qxa8 {[%clk 00:02:56]} {[%emt 00:02:27]} 37.
Qxe6+ {[%clk 00:01:21]} {[%emt 00:00:01]} Kb8 {[%clk 00:03:11]} {[%emt
00:00:15]} 38. Qxg4 {[%clk 00:01:43]} {[%emt 00:00:09]} hxg3 {[%clk 00:03:20]}
{[%emt 00:00:21]} 39. Qxg3 {[%clk 00:02:07]} {[%emt 00:00:05]} Qa1+ {[%clk
00:02:28]} {[%emt 00:01:22]} 40. Kg2 {[%clk 00:02:28]} {[%emt 00:00:09]} Qb2+
{[%clk 00:02:36]} {[%emt 00:00:23]} 41. Kg1 {[%clk 00:29:25]} {[%emt 00:03:32]}
Qxb5 {[%clk 00:31:30]} {[%emt 00:01:36]} 42. h4 {[%clk 00:26:07]} {[%emt
00:03:48]} Qh5 {[%clk 00:31:39]} {[%emt 00:00:22]} 43. Qg8 {[%clk 00:26:27]}
{[%emt 00:00:09]} Qxh4 {[%clk 00:32:00]} {[%emt 00:00:09]} 0-1

[Event "Junior-SM 2025"]
[Site "Uppsala, Sweden"]
[Date "2025.07.05"]
[Round "8.5"]
[White "Grahn, Vidar"]
[Black "Valcu, Lavinia"]
[Result "1/2-1/2"]
[TimeControl "90 min for 40 move + 30 min with an increment of 30 sec starting move 1"]
[WhiteTitle "FM"]
[WhiteFideId "1744780"]
[BlackFideId "1752197"]
[WhiteElo "2239"]
[BlackElo "2127"]

1. d4 {[%clk 01:30:56]} {[%emt 00:00:03]} Nf6 {[%clk 01:30:53]} {[%emt
00:00:07]} 2. c4 {[%clk 01:31:23]} {[%emt 00:00:04]} c5 {[%clk 01:31:17]}
{[%emt 00:00:06]} 3. d5 {[%clk 01:31:33]} {[%emt 00:00:20]} b5 {[%clk
01:31:41]} {[%emt 00:00:06]} 4. cxb5 {[%clk 01:31:49]} {[%emt 00:00:14]} a6
{[%clk 01:32:03]} {[%emt 00:00:09]} 5. bxa6 {[%clk 01:31:56]} {[%emt 00:00:22]}
g6 {[%clk 01:32:23]} {[%emt 00:00:09]} 6. Nc3 {[%clk 01:31:58]} {[%emt
00:00:29]} Bg7 {[%clk 01:32:46]} {[%emt 00:00:07]} 7. Nf3 {[%clk 01:29:12]}
{[%emt 00:03:16]} O-O {[%clk 01:32:42]} {[%emt 00:00:33]} 8. g3 {[%clk
01:28:45]} {[%emt 00:00:58]} Qa5 {[%clk 01:32:51]} {[%emt 00:00:21]} 9. Bd2
{[%clk 01:26:56]} {[%emt 00:02:19]} Nxa6 {[%clk 01:33:12]} {[%emt 00:00:09]} 10.
Bg2 {[%clk 01:25:59]} {[%emt 00:01:26]} d6 {[%clk 01:33:33]} {[%emt 00:00:10]}
11. O-O {[%clk 01:25:26]} {[%emt 00:01:02]} Qb6 {[%clk 01:33:54]} {[%emt
00:00:09]} 12. Qc1 {[%clk 01:17:12]} {[%emt 00:08:44]} Nb4 {[%clk 01:12:45]}
{[%emt 00:21:40]} 13. Nh4 {[%clk 01:13:27]} {[%emt 00:04:15]} Bb7 {[%clk
01:12:25]} {[%emt 00:00:50]} 14. Bh6 {[%clk 01:10:09]} {[%emt 00:03:47]} Bxh6
{[%clk 00:56:39]} {[%emt 00:16:17]} 15. Qxh6 {[%clk 01:10:30]} {[%emt
00:00:08]} Nbxd5 {[%clk 00:56:52]} {[%emt 00:00:17]} 16. Rab1 {[%clk 00:54:03]}
{[%emt 00:16:58]} Qc7 {[%clk 00:46:40]} {[%emt 00:10:42]} 17. Nxd5 {[%clk
00:53:18]} {[%emt 00:01:14]} Bxd5 {[%clk 00:46:44]} {[%emt 00:00:27]} 18. Bxd5
{[%clk 00:51:31]} {[%emt 00:02:17]} Nxd5 {[%clk 00:47:10]} {[%emt 00:00:04]} 19.
a3 {[%clk 00:51:02]} {[%emt 00:00:59]} Nf6 {[%clk 00:44:55]} {[%emt 00:02:44]}
20. Nf3 {[%clk 00:39:08]} {[%emt 00:12:24]} Rfb8 {[%clk 00:43:29]} {[%emt
00:01:56]} 21. Rfc1 {[%clk 00:36:32]} {[%emt 00:03:06]} Rb7 {[%clk 00:42:06]}
{[%emt 00:01:54]} 22. Nd2 {[%clk 00:32:41]} {[%emt 00:04:20]} Ng4 {[%clk
00:29:51]} {[%emt 00:12:45]} 23. Qf4 {[%clk 00:28:53]} {[%emt 00:04:18]} Ne5
{[%clk 00:29:43]} {[%emt 00:00:39]} 24. Rc3 {[%clk 00:28:39]} {[%emt 00:00:43]}
Qb8 {[%clk 00:27:21]} {[%emt 00:02:52]} 25. b4 {[%clk 00:20:22]} {[%emt
00:08:47]} cxb4 {[%clk 00:26:41]} {[%emt 00:01:10]} 26. axb4 {[%clk 00:14:38]}
{[%emt 00:06:14]} Ra4 {[%clk 00:26:10]} {[%emt 00:01:02]} 27. Rcb3 {[%clk
00:13:54]} {[%emt 00:01:13]} Nc6 {[%clk 00:11:56]} {[%emt 00:14:44]} 28. Qe4
{[%clk 00:13:27]} {[%emt 00:00:58]} Raxb4 {[%clk 00:10:19]} {[%emt 00:02:07]}
29. Qxc6 {[%clk 00:12:40]} {[%emt 00:01:16]} Rxb3 {[%clk 00:10:36]} {[%emt
00:00:13]} 30. Rxb3 {[%clk 00:12:55]} {[%emt 00:00:15]} Rxb3 {[%clk 00:11:02]}
{[%emt 00:00:05]} 31. Nxb3 {[%clk 00:13:17]} {[%emt 00:00:07]} Qxb3 {[%clk
00:11:26]} {[%emt 00:00:06]} 1/2-1/2

[Event "Junior-SM 2025"]
[Site "Uppsala, Sweden"]
[Date "2025.07.04"]
[Round "7.1"]
[White "Seo, Jung Hyun"]
[Black "Wernber, Hugo"]
[Result "0-1"]
[TimeControl "90 min for 40 move + 30 min with an increment of 30 sec starting move 1"]
[BlackTitle "FM"]
[WhiteFideId "1735667"]
[BlackFideId "1737511"]
[WhiteElo "2153"]
[BlackElo "2247"]

1. e4 {[%clk 01:30:54]} {[%emt 00:00:05]} e5 {[%clk 01:23:23]} {[%emt
00:07:38]} 2. Nf3 {[%clk 01:31:12]} {[%emt 00:00:10]} Nf6 {[%clk 01:23:32]}
{[%emt 00:00:22]} 3. Nxe5 {[%clk 01:29:36]} {[%emt 00:02:06]} d6 {[%clk
01:23:56]} {[%emt 00:00:06]} 4. Nf3 {[%clk 01:30:00]} {[%emt 00:00:06]} Nxe4
{[%clk 01:24:22]} {[%emt 00:00:05]} 5. Nc3 {[%clk 01:30:21]} {[%emt 00:00:08]}
Nxc3 {[%clk 01:24:45]} {[%emt 00:00:07]} 6. dxc3 {[%clk 01:30:47]} {[%emt
00:00:04]} Be7 {[%clk 01:25:08]} {[%emt 00:00:07]} 7. Be3 {[%clk 01:29:39]}
{[%emt 00:01:38]} Nd7 {[%clk 01:25:31]} {[%emt 00:00:08]} 8. Qd2 {[%clk
01:30:02]} {[%emt 00:00:07]} Ne5 {[%clk 01:25:39]} {[%emt 00:00:21]} 9. Nxe5
{[%clk 01:30:19]} {[%emt 00:00:14]} dxe5 {[%clk 01:26:03]} {[%emt 00:00:06]} 10.
Bd3 {[%clk 01:30:46]} {[%emt 00:00:02]} Be6 {[%clk 01:25:23]} {[%emt 00:01:10]}
11. Qe2 {[%clk 01:29:22]} {[%emt 00:01:54]} Qd5 {[%clk 01:20:38]} {[%emt
00:05:14]} 12. f3 {[%clk 01:19:16]} {[%emt 00:10:37]} O-O {[%clk 01:11:50]}
{[%emt 00:09:19]} 13. a3 {[%clk 01:11:48]} {[%emt 00:07:57]} c6 {[%clk
00:41:21]} {[%emt 00:30:59]} 14. c4 {[%clk 01:07:09]} {[%emt 00:05:09]} Qd7
{[%clk 00:37:19]} {[%emt 00:04:32]} 15. O-O-O {[%clk 01:05:57]} {[%emt
00:01:41]} Qc7 {[%clk 00:32:00]} {[%emt 00:05:50]} 16. f4 {[%clk 01:01:45]}
{[%emt 00:04:42]} f5 {[%clk 00:22:59]} {[%emt 00:09:32]} 17. fxe5 {[%clk
00:57:28]} {[%emt 00:04:47]} Qxe5 {[%clk 00:23:17]} {[%emt 00:00:11]} 18. Qf2
{[%clk 00:54:45]} {[%emt 00:03:13]} Bf6 {[%clk 00:21:50]} {[%emt 00:01:57]} 19.
c3 {[%clk 00:55:07]} {[%emt 00:00:08]} Qa5 {[%clk 00:18:38]} {[%emt 00:03:41]}
20. Rhe1 {[%clk 00:51:59]} {[%emt 00:03:38]} Rfe8 {[%clk 00:13:17]} {[%emt
00:05:51]} 21. Kb1 {[%clk 00:40:39]} {[%emt 00:11:50]} Qa4 {[%clk 00:10:36]}
{[%emt 00:03:11]} 22. Bxf5 {[%clk 00:22:56]} {[%emt 00:18:14]} Bxf5+ {[%clk
00:10:03]} {[%emt 00:01:03]} 23. Qxf5 {[%clk 00:23:24]} {[%emt 00:00:02]} Rxe3
{[%clk 00:09:54]} {[%emt 00:00:39]} 24. Rxe3 {[%clk 00:22:33]} {[%emt
00:01:21]} Qxd1+ {[%clk 00:10:14]} {[%emt 00:00:10]} 25. Ka2 {[%clk 00:23:00]}
{[%emt 00:00:02]} h6 {[%clk 00:04:44]} {[%emt 00:06:01]} 26. Qg6 {[%clk
00:21:55]} {[%emt 00:01:35]} Qd7 {[%clk 00:03:22]} {[%emt 00:01:52]} 27. Rf3
{[%clk 00:21:45]} {[%emt 00:00:40]} Qf7 {[%clk 00:03:05]} {[%emt 00:00:48]} 28.
Qg3 {[%clk 00:21:30]} {[%emt 00:00:44]} Qxc4+ {[%clk 00:03:20]} {[%emt
00:00:15]} 29. Kb1 {[%clk 00:21:30]} {[%emt 00:00:30]} Qf7 {[%clk 00:03:31]}
{[%emt 00:00:19]} 30. Qf4 {[%clk 00:21:04]} {[%emt 00:00:55]} Re8 {[%clk
00:03:01]} {[%emt 00:01:00]} 31. Rf1 {[%clk 00:21:02]} {[%emt 00:00:33]} Qd5
{[%clk 00:02:41]} {[%emt 00:00:50]} 32. g4 {[%clk 00:20:48]} {[%emt 00:00:44]}
Qe4+ {[%clk 00:02:45]} {[%emt 00:00:25]} 0-1

[Event "Junior-SM 2025"]
[Site "Uppsala, Sweden"]
[Date "2025.07.04"]
[Round "7.2"]
[White "Karlsson, Stefan"]
[Black "Ral Lustig, Melvin"]
[Result "1/2-1/2"]
[TimeControl "90 min for 40 move + 30 min with an increment of 30 sec starting move 1"]
[BlackTitle "CM"]
[WhiteFideId "1771183"]
[BlackFideId "1764195"]
[WhiteElo "2126"]
[BlackElo "2233"]

1. Nf3 {[%clk 01:30:47]} {[%emt 00:00:11]} c5 {[%clk 01:26:40]} {[%emt
00:04:21]} 2. b3 {[%clk 01:28:24]} {[%emt 00:02:53]} Nf6 {[%clk 01:26:28]}
{[%emt 00:00:41]} 3. Bb2 {[%clk 01:28:42]} {[%emt 00:00:12]} d5 {[%clk
01:25:48]} {[%emt 00:01:11]} 4. e3 {[%clk 01:28:22]} {[%emt 00:00:50]} a6
{[%clk 01:24:19]} {[%emt 00:01:59]} 5. c4 {[%clk 01:28:40]} {[%emt 00:00:12]}
Nc6 {[%clk 01:24:19]} {[%emt 00:00:30]} 6. cxd5 {[%clk 01:19:52]} {[%emt
00:09:18]} Nxd5 {[%clk 01:24:20]} {[%emt 00:00:30]} 7. d4 {[%clk 01:12:27]}
{[%emt 00:07:54]} Qa5+ {[%clk 01:13:48]} {[%emt 00:11:02]} 8. Qd2 {[%clk
01:09:15]} {[%emt 00:03:42]} Qxd2+ {[%clk 01:07:59]} {[%emt 00:06:19]} 9. Nbxd2
{[%clk 01:00:00]} {[%emt 00:09:44]} cxd4 {[%clk 01:06:24]} {[%emt 00:02:06]} 10.
Nxd4 {[%clk 00:58:50]} {[%emt 00:01:40]} Nxd4 {[%clk 01:06:34]} {[%emt
00:00:20]} 11. Bxd4 {[%clk 00:59:08]} {[%emt 00:00:12]} Nb4 {[%clk 01:06:46]}
{[%emt 00:00:18]} 12. Kd1 {[%clk 00:50:54]} {[%emt 00:08:44]} Nc6 {[%clk
01:03:30]} {[%emt 00:03:47]} 13. Bb2 {[%clk 00:49:12]} {[%emt 00:02:11]} Bf5
{[%clk 00:57:05]} {[%emt 00:06:53]} 14. e4 {[%clk 00:40:38]} {[%emt 00:09:06]}
Bg6 {[%clk 00:57:28]} {[%emt 00:00:06]} 15. Rc1 {[%clk 00:34:03]} {[%emt
00:07:06]} e5 {[%clk 00:53:57]} {[%emt 00:04:01]} 16. Bd3 {[%clk 00:33:37]}
{[%emt 00:00:55]} Rd8 {[%clk 00:37:05]} {[%emt 00:17:23]} 17. Ke2 {[%clk
00:28:15]} {[%emt 00:05:52]} 1/2-1/2

[Event "Junior-SM 2025"]
[Site "Uppsala, Sweden"]
[Date "2025.07.04"]
[Round "7.3"]
[White "Sandberg, Lucas"]
[Black "Religa, Marek"]
[Result "1/2-1/2"]
[TimeControl "90 min for 40 move + 30 min with an increment of 30 sec starting move 1"]
[WhiteFideId "1773712"]
[BlackFideId "1750208"]
[WhiteElo "2243"]
[BlackElo "2228"]

1. Nc3 {[%clk 01:30:22]} {[%emt 00:00:37]} d5 {[%clk 01:21:47]} {[%emt
00:09:14]} 2. e4 {[%clk 01:30:43]} {[%emt 00:00:08]} d4 {[%clk 01:22:05]}
{[%emt 00:00:13]} 3. Nce2 {[%clk 01:31:09]} {[%emt 00:00:03]} e5 {[%clk
01:22:29]} {[%emt 00:00:07]} 4. d3 {[%clk 01:31:27]} {[%emt 00:00:12]} c5
{[%clk 01:22:31]} {[%emt 00:00:29]} 5. Nf3 {[%clk 01:30:38]} {[%emt 00:01:18]}
Nc6 {[%clk 01:22:59]} {[%emt 00:00:02]} 6. g3 {[%clk 01:30:41]} {[%emt
00:00:26]} Be7 {[%clk 01:22:19]} {[%emt 00:01:11]} 7. Bg2 {[%clk 01:23:08]}
{[%emt 00:08:02]} h5 {[%clk 01:22:48]} {[%emt 00:00:02]} 8. h4 {[%clk
01:22:13]} {[%emt 00:01:25]} Nh6 {[%clk 01:22:47]} {[%emt 00:00:30]} 9. Nh2
{[%clk 01:13:54]} {[%emt 00:08:49]} f6 {[%clk 01:22:09]} {[%emt 00:01:08]} 10.
f4 {[%clk 01:10:23]} {[%emt 00:04:01]} Be6 {[%clk 01:17:24]} {[%emt 00:05:16]}
11. O-O {[%clk 01:05:51]} {[%emt 00:05:01]} b5 {[%clk 01:13:17]} {[%emt
00:04:37]} 12. a4 {[%clk 01:03:13]} {[%emt 00:03:09]} a6 {[%clk 01:13:21]}
{[%emt 00:00:27]} 13. Bf3 {[%clk 00:57:47]} {[%emt 00:05:55]} Bf7 {[%clk
01:13:15]} {[%emt 00:00:36]} 14. axb5 {[%clk 00:54:39]} {[%emt 00:03:38]} axb5
{[%clk 01:13:44]} 15. Rxa8 {[%clk 00:54:52]} {[%emt 00:00:17]} Qxa8 {[%clk
01:14:13]} {[%emt 00:00:01]} 16. fxe5 {[%clk 00:55:12]} {[%emt 00:00:10]} fxe5
{[%clk 01:13:51]} {[%emt 00:00:52]} 17. Kg2 {[%clk 00:54:01]} {[%emt 00:01:40]}
g6 {[%clk 01:08:54]} {[%emt 00:05:27]} 18. Ng1 {[%clk 00:53:07]} {[%emt
00:01:24]} Be6 {[%clk 01:08:52]} {[%emt 00:00:33]} 19. Bd2 {[%clk 00:48:37]}
{[%emt 00:04:59]} Nf7 {[%clk 01:08:04]} {[%emt 00:01:19]} 20. Be2 {[%clk
00:44:12]} {[%emt 00:04:56]} Qc8 {[%clk 01:05:37]} {[%emt 00:02:57]} 21. Qc1
{[%clk 00:42:28]} {[%emt 00:02:13]} c4 {[%clk 01:00:04]} {[%emt 00:06:03]} 22.
Nhf3 {[%clk 00:41:13]} {[%emt 00:01:42]} O-O {[%clk 00:55:30]} {[%emt
00:05:07]} 23. Bh6 {[%clk 00:40:12]} {[%emt 00:01:31]} Rd8 {[%clk 00:53:07]}
{[%emt 00:02:54]} 24. Ng5 {[%clk 00:38:44]} {[%emt 00:01:58]} Nxg5 {[%clk
00:50:58]} {[%emt 00:02:39]} 25. Bxg5 {[%clk 00:38:38]} {[%emt 00:00:35]} Qd7
{[%clk 00:49:16]} {[%emt 00:02:12]} 26. Bxe7 {[%clk 00:35:01]} {[%emt
00:04:08]} Qxe7 {[%clk 00:49:44]} {[%emt 00:00:02]} 27. Nf3 {[%clk 00:35:24]}
{[%emt 00:00:06]} Rf8 {[%clk 00:41:46]} {[%emt 00:08:28]} 28. Ng5 {[%clk
00:32:06]} {[%emt 00:03:48]} Rxf1 {[%clk 00:41:13]} {[%emt 00:01:04]} 29. Qxf1
{[%clk 00:32:30]} {[%emt 00:00:05]} c3 {[%clk 00:41:08]} {[%emt 00:00:35]} 30.
Qa1 {[%clk 00:31:52]} {[%emt 00:01:08]} cxb2 {[%clk 00:29:30]} {[%emt
00:12:08]} 31. Qxb2 {[%clk 00:31:07]} {[%emt 00:01:15]} b4 {[%clk 00:29:04]}
{[%emt 00:00:57]} 32. Qa1 {[%clk 00:30:19]} {[%emt 00:01:18]} Kg7 {[%clk
00:23:23]} {[%emt 00:06:11]} 33. Qa8 {[%clk 00:28:45]} {[%emt 00:02:03]} Qd7
{[%clk 00:21:04]} {[%emt 00:02:49]} 34. Kg1 {[%clk 00:28:39]} {[%emt 00:00:36]}
Bg8 {[%clk 00:18:27]} {[%emt 00:03:07]} 35. Qa6 {[%clk 00:28:20]} {[%emt
00:00:49]} Nd8 {[%clk 00:10:46]} {[%emt 00:08:12]} 36. Qa5 {[%clk 00:25:32]}
{[%emt 00:03:18]} Qd6 {[%clk 00:10:45]} {[%emt 00:00:30]} 37. g4 {[%clk
00:21:53]} {[%emt 00:04:09]} hxg4 {[%clk 00:10:54]} {[%emt 00:00:21]} 38. Bxg4
{[%clk 00:22:18]} {[%emt 00:00:05]} Kh6 {[%clk 00:10:00]} {[%emt 00:01:25]} 39.
Qb5 {[%clk 00:20:48]} {[%emt 00:02:00]} Qf6 {[%clk 00:06:05]} {[%emt 00:04:25]}
40. Qe8 {[%clk 00:10:50]} {[%emt 00:10:27]} Kg7 {[%clk 00:04:21]} {[%emt
00:02:14]} 41. Kg2 {[%clk 00:06:39]} {[%emt 00:04:41]} Qd6 {[%clk 00:29:01]}
{[%emt 00:05:51]} 42. Bd7 {[%clk 00:29:04]} {[%emt 00:08:05]} Qf6 {[%clk
00:28:29]} {[%emt 00:01:01]} 43. Bg4 {[%clk 00:26:50]} {[%emt 00:02:43]} Qd6
{[%clk 00:28:58]} {[%emt 00:00:02]} 44. Bd7 {[%clk 00:20:15]} {[%emt 00:07:05]}
Qf6 {[%clk 00:29:27]} {[%emt 00:00:01]} 45. Nf3 {[%clk 00:20:38]} {[%emt
00:00:07]} Be6 {[%clk 00:22:46]} {[%emt 00:07:11]} 46. Kf2 {[%clk 00:20:25]}
{[%emt 00:00:44]} Bxd7 {[%clk 00:20:02]} {[%emt 00:03:15]} 47. Qxd7+ {[%emt
00:00:12]} Nf7 {[%clk 00:20:08]} {[%emt 00:00:22]} 48. Qb7 {[%clk 00:20:01]}
{[%emt 00:01:13]} Kg8 {[%clk 00:18:40]} {[%emt 00:01:56]} 49. Qxb4 {[%clk
00:18:31]} {[%emt 00:02:01]} g5 {[%clk 00:14:38]} {[%emt 00:04:33]} 50. Qb8+
{[%clk 00:15:20]} {[%emt 00:03:41]} Kh7 {[%clk 00:15:07]} 51. Qc8 {[%clk
00:14:22]} {[%emt 00:01:28]} gxh4 {[%clk 00:15:17]} {[%emt 00:00:21]} 52. Qg4
{[%clk 00:14:09]} {[%emt 00:00:42]} Nh6 {[%clk 00:14:59]} {[%emt 00:00:47]} 53.
Qxh4 {[%clk 00:14:16]} {[%emt 00:00:23]} Qxh4+ {[%clk 00:14:49]} {[%emt
00:00:40]} 54. Nxh4 {[%clk 00:14:41]} {[%emt 00:00:05]} Kg7 {[%clk 00:14:08]}
{[%emt 00:01:11]} 55. Nf3 {[%clk 00:13:25]} {[%emt 00:01:46]} Kf6 {[%clk
00:14:25]} {[%emt 00:00:13]} 56. Ke2 {[%clk 00:13:46]} {[%emt 00:00:10]} Ng4
{[%clk 00:13:39]} {[%emt 00:01:16]} 57. Kd2 {[%clk 00:14:09]} {[%emt 00:00:07]}
Ke6 {[%clk 00:13:48]} {[%emt 00:00:20]} 58. Kc1 {[%clk 00:14:07]} {[%emt
00:00:33]} Kd6 {[%clk 00:13:54]} {[%emt 00:00:24]} 59. Kb2 {[%clk 00:14:32]}
{[%emt 00:00:06]} Ne3 {[%clk 00:13:45]} {[%emt 00:00:36]} 60. Kb3 {[%clk
00:14:47]} {[%emt 00:00:16]} Nd1 {[%clk 00:13:08]} {[%emt 00:01:07]} 61. Ng5
{[%clk 00:14:10]} {[%emt 00:01:07]} Nf2 {[%clk 00:12:48]} {[%emt 00:00:51]} 62.
Kb4 {[%clk 00:13:06]} {[%emt 00:01:32]} Nd1 {[%clk 00:12:52]} {[%emt 00:00:27]}
63. Nf3 {[%clk 00:11:57]} {[%emt 00:01:39]} Nf2 {[%clk 00:12:58]} {[%emt
00:00:23]} 64. Nh4 {[%clk 00:11:42]} {[%emt 00:00:47]} Nd1 {[%clk 00:13:08]}
{[%emt 00:00:20]} 65. Nf5+ {[%clk 00:11:41]} {[%emt 00:00:30]} Kc6 {[%clk
00:12:33]} {[%emt 00:01:05]} 66. Nh4 {[%clk 00:11:04]} {[%emt 00:01:07]} Kd6
{[%clk 00:12:45]} {[%emt 00:00:18]} 67. Nf3 {[%clk 00:11:14]} {[%emt 00:00:20]}
Nf2 {[%clk 00:12:45]} {[%emt 00:00:31]} 68. Kb3 {[%clk 00:11:01]} {[%emt
00:00:43]} Ke6 {[%clk 00:13:02]} {[%emt 00:00:13]} 69. Kc4 {[%clk 00:11:14]}
{[%emt 00:00:17]} Nd1 {[%clk 00:12:18]} {[%emt 00:01:14]} 70. Nxd4+ {[%clk
00:11:39]} {[%emt 00:00:05]} exd4 {[%clk 00:12:45]} {[%emt 00:00:03]} 71. Kxd4
{[%clk 00:12:02]} {[%emt 00:00:07]} Nf2 {[%clk 00:12:45]} {[%emt 00:00:30]} 72.
c4 {[%clk 00:12:20]} {[%emt 00:00:11]} Kd6 {[%clk 00:11:31]} {[%emt 00:01:46]}
73. Ke3 {[%clk 00:10:29]} {[%emt 00:02:20]} Nd1+ {[%clk 00:11:29]} {[%emt
00:00:32]} 74. Ke2 {[%clk 00:10:33]} {[%emt 00:00:26]} Nb2 {[%clk 00:11:18]}
{[%emt 00:00:41]} 75. Kd2 {[%clk 00:10:52]} {[%emt 00:00:11]} Kc5 {[%clk
00:11:03]} {[%emt 00:00:45]} 76. e5 {[%clk 00:10:41]} {[%emt 00:00:40]} Na4
{[%clk 00:10:16]} {[%emt 00:01:18]} 77. Ke3 {[%clk 00:07:23]} {[%emt 00:03:48]}
Nb2 {[%clk 00:10:28]} {[%emt 00:00:17]} 78. Ke4 {[%clk 00:07:29]} {[%emt
00:00:24]} Kc6 {[%clk 00:10:51]} {[%emt 00:00:09]} 79. Ke3 {[%clk 00:07:14]}
{[%emt 00:00:44]} Kc5 {[%clk 00:11:04]} {[%emt 00:00:17]} 80. Kd2 {[%clk
00:07:00]} {[%emt 00:00:44]} Na4 {[%clk 00:11:06]} {[%emt 00:00:28]} 81. Kc2
{[%clk 00:07:15]} {[%emt 00:00:15]} Nb6 {[%clk 00:10:26]} {[%emt 00:01:10]} 82.
Kb3 {[%clk 00:07:12]} {[%emt 00:00:33]} Kd4 {[%clk 00:04:57]} {[%emt 00:06:00]}
83. e6 {[%clk 00:06:57]} {[%emt 00:00:44]} Nc8 {[%clk 00:05:26]} {[%emt
00:00:02]} 84. Kb4 {[%clk 00:06:26]} {[%emt 00:01:01]} Kxd3 {[%clk 00:05:32]}
{[%emt 00:00:24]} 85. Kc5 {[%clk 00:06:11]} {[%emt 00:00:44]} Kc3 {[%clk
00:05:28]} {[%emt 00:00:34]} 86. Kd5 {[%clk 00:05:01]} {[%emt 00:01:40]} Kb4
{[%clk 00:05:45]} {[%emt 00:00:13]} 87. Kc6 {[%clk 00:04:08]} {[%emt 00:01:22]}
Kxc4 {[%clk 00:06:05]} {[%emt 00:00:11]} 88. Kc7 {[%clk 00:04:26]} {[%emt
00:00:12]} Ne7 {[%clk 00:06:29]} {[%emt 00:00:06]} 89. Kd7 {[%clk 00:04:46]}
{[%emt 00:00:10]} Nd5 {[%clk 00:06:57]} {[%emt 00:00:02]} 90. e7 {[%clk
00:05:12]} {[%emt 00:00:03]} Kd4 {[%clk 00:06:17]} {[%emt 00:01:10]} 91. e8=N
{[%clk 00:05:20]} {[%emt 00:00:22]} Ne3 {[%clk 00:06:36]} {[%emt 00:00:11]} 92.
Nd6 {[%clk 00:05:32]} {[%emt 00:00:19]} 1/2-1/2